{"text_format":"2","workbook":"xlsx","n_sheets":3,"sheets":["Ark1","Ark2","Ark3"],"not_rendered":{"charts":0,"images":1,"macros":0,"external_links":0,"defined_names":2,"comments":0,"pivot_tables":0},"unopened":[],"bounds":{"document_bytes":16777216,"sheet_cells":100000,"run_cost":"one","rows_first":2000,"rows_last":500,"rows_between":2000,"halvings":0,"cell_chars":16384,"cell_head_chars":4096},"cells_cut":0,"cells_raw":0,"read":"whole","date_system":"1900"}

{"sheet":"Ark1","index":0,"n_rows":133,"n_cols":6,"rows_kept":133,"cut":false,"hidden":false,"merged":[[132,0,132,5],[120,2,120,4],[118,2,118,3],[119,2,119,4],[0,0,0,5],[122,2,122,5],[130,4,130,5],[123,3,123,5],[124,2,124,5],[126,2,126,5],[128,2,128,5],[127,2,127,5]]}
["Fyrværkerisalg 2019\nNybolig Park, Sydskellet 1, 2630 Taastrup\nBestil og betal senest 18. december"]
["Best.nr","Varenummer","Tekst","Udsalgspris","Antal","I alt pris"]
[1,"73.1600","BLACK & WHITE BATTERI 1 - 16 SKUD",99,null,{"$f":"D3*E3","v":0}]
[2,"73.1925","BLACK & WHITE BATTERI 2 - 19 SKUD",249,null,{"$f":"D4*E4","v":0}]
[3,"73.2519","BLACK & WHITE BATTERI 5 - 25 SKUD",199,null,0]
[4,"73.2060","BLACK & WHITE BATTERI 3 - 20 SKUD",249,null,0]
[5,"73.2065","BLACK & WHITE BATTERI 4 - 20 SKUD",349,null,0]
[6,"73.3601","BLACK & WHITE BATTERI 6 - 36 SKUD",399,null,0]
[7,"73.4045","40 SKUDS BATTERI BATTERI 7 - 40 SKUD",499,null,0]
[8,"73.1930","19 SKUDS BATTERI BATTERI 8 - 19 SKUD",249,null,0]
[9,"73.3070","30 SKUDS BATTERI BATTERI 9 - 30 SKUD",399,null,0]
[10,"73.2420","24 SKUDS BATTERI BATTERI 10 - 24 SKUD",199,null,0]
[11,"73.3515","35 SKUDS BATTERI BATTERI 11 - 35 SKUD",599,null,0]
[12,"76.9215","FEST SORTIMENT FIRST CLASS",499,null,0]
[13,"76.9375","SUPERIOR FESTSORTIMENT FIRST CLASS",799,null,0]
[14,"76.8025","BUSINESS FESTSORTIMENT FIRST CLASS",999,null,0]
[15,"76.8700","EXCELLENCE FESTSORTIMENT FIRST CLASS",1599,null,0]
[16,"72.0205","GULDBOMBE RAKET FIRST CLASS - 1 stk",149,null,0]
["16B","72.0205","GULDBOMBE RAKET FIRST CLASS - 2 stk",199,null,0]
[17,"72.0345","PLATINIUM 3 STK 3 KUGLER FIRST CLASS",249,null,0]
[18,"72.0460","RAKET SORTIMENT 4 STK FIRST CLASS",129,null,0]
[19,"72.0510","KL.12 SORTIMENT 5 STK FIRST CLASS",399,null,0]
[20,"72.0585","GOLD 5 STK 2 KUGLER FIRST CLASS",149,null,0]
[21,"72.0830","SALUT 8 STK SALUTRAKETTER FIRST CLASS",99,null,0]
[22,"72.0840","RAKET SORTIMENT 8 STK FIRST CLASS",399,null,0]
[23,"72.1235","MEGA RAKET SORT. 12 STK FIRST CLASS",799,null,0]
[24,"72.1800","RAKET SORTIMENT 18 STK FIRST CLASS",299,null,0]
[25,"73.1635","BLACK BATTERI 16 SKUD 20MM",99,null,0]
[26,"73.5070","BIJELA BATTERI (Max 2 stk)",119,null,0]
[27,"73.1640","NOIR BATTERI  16 SKUD 25MM",159,null,0]
[28,"73.2517","NIGRA BATTERI 25 SKUD 20MM",149,null,0]
[29,"73.2518","SVARTUR BATTERI 25 SKUD 25MM",229,null,0]
[30,"73.3685","NIGRUM BATTERI 36 SKUD 25MM",349,null,0]
[31,"76.9200","NERO+ZWART+SVART SORT. 4 STK 36 SKUDS BATTERIER",799,null,0]
[32,"73.3800","WHITE BATTERI 38 SKUD 25MM MIX BATTERI",449,null,0]
[33,"73.4940","PRETO BATTERI 49 SKUD 20MM",299,null,0]
[34,"73.4945","WAISS BATTERI 49 SKUD VINKEL 30MM",599,null,0]
[35,"73.4950","BALTS BATTERI 49 SKUD 30MM",699,null,0]
[36,"73.6430","WIT BATTERI 64 SKUD 25/30 MM",799,null,0]
[37,"73.3690","HVITUR BATTERI 36 SKUD 30MM",499,null,0]
[38,"76.9205","BLANKA+VALGE+BLANC+VALKON BATT.SORT. 4 STK 25 SKUD",899,null,0]
[39,"73.1400","HEI 14 SKUDS 50MM. BAT. ",599,null,0]
[40,"73.7220","BÁI BATTERI 72 SKUD    72 SKUDS VINKEL BATTERI",499,null,0]
[41,"73.7005","BALTA BATTERI 70 SKUD 25MM MIX",699,null,0]
[42,"73.7015","QARA 70 SKUDS VINKEL 25 MM. FIRST CLASS",699,null,0]
[43,"73.9097","FEHER BATTERI 97 SKUD 20/25/30MM",799,null,0]
[44,"76.9260","BIANCO COMPOUND 200 SKUD 20 MM MIX",999,null,0]
[45,"76.9210","WEISS COMPOUND 140 SKUD",1299,null,0]
[46,"76.9370","MUSTA 138 SKUDS COMPOUN FIRST CLASS",1499,null,0]
[47,"76.9295","BELTZA FIRST CLASS  ULTIMATE COMPOUND 2 KG.",1799,null,0]
[48,"77.1005","SMILEY FACE FONTÆNE FIRST CLASS - 1 stk",49,null,0]
[48,"77.1005","SMILEY FACE FONTÆNE FIRST CLASS - 3 stk",99,null,0]
[49,"73.1010","CHOCKFONTÆNE FIRST CLASS",89,null,0]
[50,"77.4080","KEGLEFONTÆNE SORT. 3 STK FIRST CLASS",129,null,0]
[51,"77.2045","KEGLEFONTÆNE MEGA 50 CM FIRST CLASS",199,null,0]
[52,"77.2065","007 RAKET FONTÆNE FIRST CLASS",199,null,0]
[53,"77.2040","FEST FONTÆNE FIRST CLASS",299,null,0]
[54,"78.6025","GULD BOMBERØR MIX 4 STK FIRST CLASS",99,null,0]
[55,"78.3015","GULDBLITZ RØR 5 SKUD 30 MM - 1 stk",59,null,0]
["55B","78.3015","GULDBLITZ RØR 5 SKUD 30 MM - 2 stk",99,null,0]
[56,"78.7980","LUFTBOMBESORTIMENT SINGLE SHOT 20/25/30 MM",149,null,0]
[57,"76.2985","JUNIOR PAKKE 2 ",199,null,0]
[58,"76.3015","TEENAGE SORTIMENT ",299,null,0]
[59,"76.1235","JUNIOR PAKKE ",99,null,0]
[60,"76.3285","XXL SORTIMENT ",499,null,0]
[61,"77.4090","HEKSEHYL  50 STK",19.95,null,0]
[62,"77.4100","FONTÆNE SORTIMENT 15 STK FIRST CLASS",199,null,0]
[63,"77.6055","ROMERLYS 100 SKUD 6 STK 1.5M ",99,null,{"$f":"D68*E68","v":0}]
[64,"76.0440","FLASH PACK 19 STK. ",69.95,null,0]
[65,"76.0685","CRACKLINGBALLS 68 STK FIRST CLASS",69.95,null,0]
[66,"76.1025","JUNIORRØR M/SPINNERE  44 STK.",69.95,null,0]
[67,"76.1035","PATRON RØR 49 STK.  ",69.95,null,0]
[68,"77.4120","HYLE MIX. 89 STK. ASSOTERET",69.95,null,0]
[69,"79.0640","KÆMPE ILDKUGLER FIRST CLASS",69.95,null,0]
[6469,null,"3 stk af nr 64-69",175,null,0]
[70,"79.6615","KNALDPERLER 15 ÆSKER",29.95,null,0]
[71,"9.6800","HUNDEPROPSORTIMENT 3 PK. HUNDEPROP + 1PISTOL",69.95,null,0]
[72,"66.0100","Fakler 1 stk",24.95,null,0]
["72B","66.0100","Fakler 5 stk",99,null,0]
[73,"9.8600","HØREVÆRN BØRN ",69.95,null,0]
[74,"79.8575","SIKKERHEDSBRILLE  FIRST CLASS",25,null,0]
["W101","76.1225","MEDIUM SORTIMENT ",99,null,0]
["W102","76.2975","XL SORTIMENT",229,null,0]
["W103","79.0020","FIRST CLASS TÆNDMIDLER CIGAR",20,null,0]
["W104","112.3300","SVEND SVÆRDSVINGER 33 STK RAKETTER ",599,null,0]
["W105","113.1905","LONG JOHN SILVER 19 SKUDS 30 MM",169,null,0]
["W106","113.2528","SORTSKÆG 25 SKUDS 20 MM.",89,null,0]
["W107","113.6620","ANNE BONNY 66 SKUD  20+25 MM",259,null,0]
["W108","113.9080","FRANCIS DRAKE 90 SKUDS MULTIBATTERI",599,null,0]
["W109","111.4015","MAGIC SHELL 4 KUGLERAKET",59,null,0]
["W110","116.6015","FEST SORTIMENT ",479,null,0]
["W111","118.2510","LYNSTANG 5 SKUDS RØR 25 MM",29,null,0]
["W112","116.9270","THE KRAKEN 100 SKUD - 25 MM",599,null,0]
["W113","113.7710","KAPTAJN DING DONG 77 SKUD - 25 MM",379,null,0]
["X101","9.6700","HUNDEPROPPER ",19.95,null,0]
["X102","9.8500","BESKYTTELSESBRILLER BØRN ",19.95,null,0]
["X103","9.8550","BESKYTTELSESBRILLER VOKSE ",19.95,null,0]
["X104","65.0100","HUNDEPROPPISTOLER PLAST ",14.95,null,0]
["X105","68.9200","BOMBERØRSHOLDER ",19.95,null,0]
["Z112",1100,"Professional tændpinde",25,null,0]
["Z113",1200,"Bengalske fakler og tændpinde",20,null,0]
["Z114","D480-40","Affyringsstativer",25,null,0]
["Z116","KS1","Knaldsnor. Stor æske med 24 stk.",5,null,0]
["Z118","SS15","Stjernekaster 15 cm",5,null,0]
["Z119","SS45","Stjernekastere 45 cm.",20,null,0]
["Z120","SS782","Stjernekastere 70 cm",25,null,0]
["Z121","X-ATAB14","Ballon bordbombe 21 cm",29,null,0]
["Z123","X-ATAB16","Flag/Konfetti bombe 21 cm.",29,null,0]
["Z124","X-KB100","Bordbombesortiment 3 stk.",25,null,0]
["Z126","KD72","Konfetti spray",20,null,0]
["Z127","KR80","Partypopper stor",39,null,0]
["Z128","KP2","Konfettipistol med 2 dåser",59,null,0]
["Z132","R22","Thunderstorm 4 stk i pkk.",99,null,0]
["Z136","RL70","Turbo Thunderball",39,null,0]
["Z139","SPK6","Spanske Kugler",49,null,0]
["L151",null,"Skandi Tip Turbo Lighter",10,null,0]
["L152",null,"Skandi Jet Flame Athen Stormlighter",20,null,0]
[]
[null,null,"Total antal styk og pris: ",null,{"$f":"SUM(E3:E117)","v":0},{"$f":"SUM(F3:F117)","v":0}]
[null,null,"- 25 % rabat  ved bestilling senest 18. december: ",null,null,{"$f":"F119*25/100","v":0}]
[null,null,"Samlet pris til betaling: ",null,null,{"$f":"F119-F120","v":0}]
[]
[null,"Navn"]
[null,"Telefonnr"]
[null,"Email"]
[]
[null,"Betaling","Bankoverførsel til regnr. 2275 kontonr 7559543718"]
[null,null,"Der kan også betales med Mobilepay 43456.\nBrug via nr.: 43456 - Skriv \"TFC Krudt + Telefonnr + Email\" i meddelelsesfelt."]
[null,null,"Ordren behandles først når betaling er registreret hos TFC"]
[]
[null,null,"Afhentning i åbningstid 11.00 - 18.00:","28. dec.     kl."]
[]
["Bestillingsseddel sendes  til Frank på forretningsfoerer@taastrupfc.com  og beløb indbetales på ovennævnte konto.\nAlternativt afleveres bestillingsseddel i klubhuset til enten Torben i Cafeen eller til Frank i TFC Shoppen - Betaling er mulig samme sted."]

{"sheet":"Ark2","index":1,"n_rows":22,"n_cols":1,"rows_kept":22,"cut":false,"hidden":false,"merged":[]}
["FEST SORTIMENT SUPERIOR SORTIMENT BUISNESS SORTIMENT EXECUTIVE SORTIMENT PLATINIUM 3 STK. 3 KUGLERAKETTER RAKET SORTIMENT 4 STK. RAKET SORTIMENT 5 STK. RAKET SORTIMENT 5 STK. 2” KUGLERAKETTER SALUT RAKETTER 8 STK. RAKET SORTIMENT 8 STK. MEGA RAKET SORTIMENT 12 STK. RAKET SORTIMENT 18 STK. BLACK BATTERI 16 SKUD 20 MM. NOIR BATTERI 16 SKUD 25 MM. NIGRA BATTERI 25 SKUD 20 MM. SVARTUR BATTERI 25 SKUD 25 MM. NIGRUM BATTERI 36 SKUD 25 MM. 4 STK. 36 SKUDS  BATTERI SORTIMENT ( 2 STK. NERO + ZWART + SVART ) WHITE BATTERI 38 SKUD 25 MM. LIGE + VINKEL PRETO BATTERI 49 SKUD 20 MM. WÄISS BATTERI 49 SKUD 30 MM. VINKEL BALTS BATTERI 49 SKUD 30 MM. WIT BATTERI 64 SKUD 25/30 MM. LIGE + VINKEL HVITUR BATTERI 36 SKUD 30 MM. 4 STK. 25 SKUD BATTERI SORTIMENT ( BLANKA, VALGE, BLANC OG VALKOINEN ) HÉI BATTERI - 14 SKUDS 50 MM. LIGE + VINKEL BAI BATTERI 72 SKUD VINKEL MED SALUTTER BALTA BATTERI 70 SKUD 25 MM. QARA BATTERI 72 SKUD VINKEL 25 MM. FEHÉR BATTERI 97 SKUD 20/25/30 MM. BIANCO COMPOUND BATTERI 200 SKUD 20 MM. LIGE + VINKEL WEISS COMPOUND BATTERI 140 SKUD 25 MM. LIGE + VINKEL MUSTA COMPOUND BATTERI 138 SKUD MIX DIAMETER LIGE + VINKEL BELTZA COMPOUND BATTERI 189 SKUD LIGE + VINKEL SMILEY FACE FONTÆNE CHOCKFONTÆNE KEGLEFONTÆNE SORTIMENT 3 STK. KEGLEFONTÆNE MEGA 50 CM. RAKETFONTÆNE MEGA CRACKLING 50 CM. FEST FONTÆNE GULD BOMBERØR 5 SKUD MIX 4 STK. GULDBLITZ BOMBERØR 5 SKUD 30 MM. LUFTBOMBE SORTIMENT SINGLE SHOT 20/25/30 MM. JUNIOR SORTIMENT LARGE TEENAGE SORTIMENT TIL DEN LIDT STØRRE KNEJT JUNIOR SORTIMENT XXL HEKSEHYL 50 STK. FONTÆNE SORTIMENT 15 STK. ROMERLYS 100 SKUD 6 STK. 150 CM. LANGE BLITZMIX 19 STK. FORSKELLIGE STØRRELSER CRACKLINGBALLS 68 STK. JORDSOLE I 3 FARVER 44 STK. PLAST PATRONER 39 STK. HYLEMIX 89 STK. 3 STØRRELSER KÆMPE ILDKUGLER 6 STK. KNALDPERLER 15 ÆSKER MED 10 STK. I HVER HUNDEPROP SORTIMENT MED 3 PK. PROPPER OG 1 STK. PISTOL HÅNDHOLDTE FAKLER I FORSKELLIGE FARVER HØREVÆRN TIL BØRN I FORSKELLIGE FARVER NY SIKKERHEDSBRILLE EXCLUSIVE FIRST CLASS FIREWORKS"]
["119,99,1 STK. 149,- - 2 stk. 199,99,249,199,249,349,399,499,249,399,199,599,499,799,999,1599,249,129,399,149,99,399,799,299,99,159,149,229,349,1 STK. 249,- - 4 STK. 799,449,299,599,699,799,499,1 STK. 299,- - 4 STK. 899,599,499,699,699,799,999,1299,1499,1799,1 stk. 49,- - 3 stk. 99,89,129,199,199,299,99,1 stk. 59,- - 2 stk. 99,149,199,299,499,19,95 199,99,1 stk. 69,95 - 3 stk. 175,1 stk. 69,95 - 3 stk. 175,1 stk. 69,95 - 3 stk. 175,1 stk. 69,95 - 3 stk. 175,1 stk. 69,95 - 3 stk. 175,1 stk. 69,95 - 3 stk. 175,29,95 69,95 1 stk. 24,95 - 5 stk. 99,69,95 25,"]
["26 59 16 1 2 3 4 5 6 7 8 9 10 11 12 13 14 15 17 18 19 20 21 22 23 24 25 27 28 29 30 31 32 33 34 35 36 37 38 39 40 41 42 43 44 45 46 47 48 49 50 51 52 53 54 55 56 57 58 60 61 62 63 64 65 66 67 68 69 70 71 72 73 74 Nr. Pris Produkter"]
["Der tages forbehold for prisændringer, trykfejl og udsolgte varer samt forsinkede leveringer."]
["Udfyld bestillingslisten og tag den med til din lokale First Class fyrværkeri forhandler."]
[]
[]
["BATTERI NR. 1 BATTERI NR. 2 BATTERI NR. 3 BATTERI NR. 4 BATTERI NR. 5 BATTERI NR. 6 BATTERI NR. 7 BATTERI NR. 8 BATTERI NR. 9 BATTERI NR. 10 BATTERI NR. 11 FEST SORTIMENT SUPERIOR SORTIMENT BUISNESS SORTIMENT EXECUTIVE SORTIMENT PLATINIUM 3 STK. 3 KUGLERAKETTER RAKET SORTIMENT 4 STK. RAKET SORTIMENT 5 STK. RAKET SORTIMENT 5 STK. 2” KUGLERAKETTER SALUT RAKETTER 8 STK. RAKET SORTIMENT 8 STK. MEGA RAKET SORTIMENT 12 STK. RAKET SORTIMENT 18 STK. BLACK BATTERI 16 SKUD 20 MM. NOIR BATTERI 16 SKUD 25 MM. NIGRA BATTERI 25 SKUD 20 MM. SVARTUR BATTERI 25 SKUD 25 MM. NIGRUM BATTERI 36 SKUD 25 MM. 4 STK. 36 SKUDS  BATTERI SORTIMENT ( 2 STK. NERO + ZWART + SVART ) WHITE BATTERI 38 SKUD 25 MM. LIGE + VINKEL PRETO BATTERI 49 SKUD 20 MM. WÄISS BATTERI 49 SKUD 30 MM. VINKEL BALTS BATTERI 49 SKUD 30 MM. WIT BATTERI 64 SKUD 25/30 MM. LIGE + VINKEL HVITUR BATTERI 36 SKUD 30 MM. 4 STK. 25 SKUD BATTERI SORTIMENT ( BLANKA, VALGE, BLANC OG VALKOINEN ) HÉI BATTERI - 14 SKUDS 50 MM. LIGE + VINKEL BAI BATTERI 72 SKUD VINKEL MED SALUTTER BALTA BATTERI 70 SKUD 25 MM. QARA BATTERI 72 SKUD VINKEL 25 MM. FEHÉR BATTERI 97 SKUD 20/25/30 MM. BIANCO COMPOUND BATTERI 200 SKUD 20 MM. LIGE + VINKEL WEISS COMPOUND BATTERI 140 SKUD 25 MM. LIGE + VINKEL MUSTA COMPOUND BATTERI 138 SKUD MIX DIAMETER LIGE + VINKEL BELTZA COMPOUND BATTERI 189 SKUD LIGE + VINKEL SMILEY FACE FONTÆNE CHOCKFONTÆNE KEGLEFONTÆNE SORTIMENT 3 STK. KEGLEFONTÆNE MEGA 50 CM. RAKETFONTÆNE MEGA CRACKLING 50 CM. FEST FONTÆNE GULD BOMBERØR 5 SKUD MIX 4 STK. GULDBLITZ BOMBERØR 5 SKUD 30 MM. LUFTBOMBE SORTIMENT SINGLE SHOT 20/25/30 MM. JUNIOR SORTIMENT LARGE TEENAGE SORTIMENT TIL DEN LIDT STØRRE KNEJT JUNIOR SORTIMENT XXL HEKSEHYL 50 STK. FONTÆNE SORTIMENT 15 STK. ROMERLYS 100 SKUD 6 STK. 150 CM. LANGE BLITZMIX 19 STK. FORSKELLIGE STØRRELSER CRACKLINGBALLS 68 STK. JORDSOLE I 3 FARVER 44 STK. PLAST PATRONER 39 STK. HYLEMIX 89 STK. 3 STØRRELSER KÆMPE ILDKUGLER 6 STK. KNALDPERLER 15 ÆSKER MED 10 STK. I HVER HUNDEPROP SORTIMENT MED 3 PK. PROPPER OG 1 STK. PISTOL HÅNDHOLDTE FAKLER I FORSKELLIGE FARVER HØREVÆRN TIL BØRN I FORSKELLIGE FARVER NY SIKKERHEDSBRILLE EXCLUSIVE FIRST CLASS FIREWORKS"]
["GULDBOMBE RAKETTER"]
["50 SKUD VINKEL BATTERI 20 MM. "]
["JUNIORSORTIMENT MEDIUM"]
["BATTERI NR. 1"]
["BATTERI NR. 2"]
["BATTERI NR. 3"]
["BATTERI NR. 4"]
["BATTERI NR. 5"]
["BATTERI NR. 6"]
["BATTERI NR. 7"]
["BATTERI NR. 8"]
["BATTERI NR. 9"]
["BATTERI NR. 10"]
["BATTERI NR. 11"]

{"sheet":"Ark3","index":2,"n_rows":115,"n_cols":6,"rows_kept":115,"cut":false,"hidden":false,"merged":[]}
[1,"73.1600","BLACK & WHITE BATTERI 1 - 16 SKUD",99,null,{"$f":"D1*E1","v":0}]
[2,"73.1925","BLACK & WHITE BATTERI 2 - 19 SKUD",249,null,0]
[3,"73.2519","BLACK & WHITE BATTERI 5 - 25 SKUD",199,null,0]
[4,"73.2060","BLACK & WHITE BATTERI 3 - 20 SKUD",249,null,0]
[5,"73.2065","BLACK & WHITE BATTERI 4 - 20 SKUD",349,null,0]
[6,"73.3601","BLACK & WHITE BATTERI 6 - 36 SKUD",399,null,0]
[7,"73.4045","40 SKUDS BATTERI BATTERI 7 - 40 SKUD",499,null,0]
[8,"73.1930","19 SKUDS BATTERI BATTERI 8 - 19 SKUD",249,null,0]
[9,"73.3070","30 SKUDS BATTERI BATTERI 9 - 30 SKUD",399,null,0]
[10,"73.2420","24 SKUDS BATTERI BATTERI 10 - 24 SKUD",199,null,0]
[11,"73.3515","35 SKUDS BATTERI BATTERI 11 - 35 SKUD",599,null,0]
[12,"76.9215","FEST SORTIMENT FIRST CLASS",499,null,0]
[13,"76.9375","SUPERIOR FESTSORTIMENT FIRST CLASS",799,null,0]
[14,"76.8025","BUSINESS FESTSORTIMENT FIRST CLASS",999,null,0]
[15,"76.8700","EXCELLENCE FESTSORTIMENT FIRST CLASS",1599,null,0]
[16,"72.0205","GULDBOMBE RAKET FIRST CLASS - 1 stk",149,null,0]
[16,"72.0205","GULDBOMBE RAKET FIRST CLASS - 2 stk",199,null,0]
[17,"72.0345","PLATINIUM 3 STK 3 KUGLER FIRST CLASS",249,null,0]
[18,"72.0460","RAKET SORTIMENT 4 STK FIRST CLASS",129,null,0]
[19,"72.0510","KL.12 SORTIMENT 5 STK FIRST CLASS",399,null,0]
[20,"72.0585","GOLD 5 STK 2 KUGLER FIRST CLASS",149,null,0]
[21,"72.0830","SALUT 8 STK SALUTRAKETTER FIRST CLASS",99,null,0]
[22,"72.0840","RAKET SORTIMENT 8 STK FIRST CLASS",399,null,0]
[23,"72.1235","MEGA RAKET SORT. 12 STK FIRST CLASS",799,null,0]
[24,"72.1800","RAKET SORTIMENT 18 STK FIRST CLASS",299,null,0]
[25,"73.1635","BLACK BATTERI 16 SKUD 20MM",99,null,0]
[26,"73.5070","BIJELA BATTERI (Max 2 stk)",119,null,0]
[27,"73.1640","NOIR BATTERI  16 SKUD 25MM",159,null,0]
[28,"73.2517","NIGRA BATTERI 25 SKUD 20MM",149,null,0]
[29,"73.2518","SVARTUR BATTERI 25 SKUD 25MM",229,null,0]
[30,"73.3685","NIGRUM BATTERI 36 SKUD 25MM",349,null,0]
[31,"76.9200","NERO+ZWART+SVART SORT. 4 STK 36 SKUDS BATTERIER",799,null,0]
[32,"73.3800","WHITE BATTERI 38 SKUD 25MM MIX BATTERI",449,null,0]
[33,"73.4940","PRETO BATTERI 49 SKUD 20MM",299,null,0]
[34,"73.4945","WAISS BATTERI 49 SKUD VINKEL 30MM",599,null,0]
[35,"73.4950","BALTS BATTERI 49 SKUD 30MM",699,null,0]
[36,"73.6430","WIT BATTERI 64 SKUD 25/30 MM",799,null,0]
[37,"73.3690","HVITUR BATTERI 36 SKUD 30MM",499,null,0]
[38,"76.9205","BLANKA+VALGE+BLANC+VALKON BATT.SORT. 4 STK 25 SKUD",899,null,0]
[39,"73.1400","HEI 14 SKUDS 50MM. BAT. ",599,null,0]
[40,"73.7220","BÁI BATTERI 72 SKUD    72 SKUDS VINKEL BATTERI",499,null,0]
[41,"73.7005","BALTA BATTERI 70 SKUD 25MM MIX",699,null,0]
[42,"73.7015","QARA 70 SKUDS VINKEL 25 MM. FIRST CLASS",699,null,0]
[43,"73.9097","FEHER BATTERI 97 SKUD 20/25/30MM",799,null,0]
[44,"76.9260","BIANCO COMPOUND 200 SKUD 20 MM MIX",999,null,0]
[45,"76.9210","WEISS COMPOUND 140 SKUD",1299,null,0]
[46,"76.9370","MUSTA 138 SKUDS COMPOUN FIRST CLASS",1499,null,0]
[47,"76.9295","BELTZA FIRST CLASS  ULTIMATE COMPOUND 2 KG.",1799,null,0]
[48,"77.1005","SMILEY FACE FONTÆNE FIRST CLASS - 1 stk",49,null,0]
[48,"77.1005","SMILEY FACE FONTÆNE FIRST CLASS - 3 stk",99,null,0]
[49,"73.1010","CHOCKFONTÆNE FIRST CLASS",89,null,0]
[50,"77.4080","KEGLEFONTÆNE SORT. 3 STK FIRST CLASS",129,null,0]
[51,"77.2045","KEGLEFONTÆNE MEGA 50 CM FIRST CLASS",199,null,0]
[52,"77.2065","007 RAKET FONTÆNE FIRST CLASS",199,null,0]
[53,"77.2040","FEST FONTÆNE FIRST CLASS",299,null,0]
[54,"78.6025","GULD BOMBERØR MIX 4 STK FIRST CLASS",99,null,0]
[55,"78.3015","GULDBLITZ RØR 5 SKUD 30 MM - 1 stk",59,null,0]
[55,"78.3015","GULDBLITZ RØR 5 SKUD 30 MM - 2 stk",99,null,0]
[56,"78.7980","LUFTBOMBESORTIMENT SINGLE SHOT 20/25/30 MM",149,null,0]
[57,"76.2985","JUNIOR PAKKE 2 ",199,null,0]
[58,"76.3015","TEENAGE SORTIMENT ",299,null,0]
[59,"76.1235","JUNIOR PAKKE ",99,null,0]
[60,"76.3285","XXL SORTIMENT ",499,null,0]
[61,"77.4090","HEKSEHYL  50 STK",19.95,null,0]
[62,"77.4100","FONTÆNE SORTIMENT 15 STK FIRST CLASS",199,null,0]
[63,"77.6055","ROMERLYS 100 SKUD 6 STK 1.5M ",99,null,{"$f":"D66*E66","v":0}]
[64,"76.0440","FLASH PACK 19 STK. ",69.95,null,0]
[65,"76.0685","CRACKLINGBALLS 68 STK FIRST CLASS",69.95,null,0]
[66,"76.1025","JUNIORRØR M/SPINNERE  44 STK.",69.95,null,0]
[67,"76.1035","PATRON RØR 49 STK.  ",69.95,null,0]
[68,"77.4120","HYLE MIX. 89 STK. ASSOTERET",69.95,null,0]
[69,"79.0640","KÆMPE ILDKUGLER FIRST CLASS",69.95,null,0]
[null,null,"3 stk af nr 64-69",175,null,0]
[70,"79.6615","KNALDPERLER 15 ÆSKER",29.95,null,0]
[71,"9.6800","HUNDEPROPSORTIMENT 3 PK. HUNDEPROP + 1PISTOL",69.95,null,0]
[72,"66.0100","Fakler 1 stk",24.95,null,0]
[72,"66.0100","Fakler 5 stk",24.95,null,0]
[73,"9.8600","HØREVÆRN BØRN ",69.95,null,0]
[74,"79.8575","SIKKERHEDSBRILLE  FIRST CLASS",25,null,0]
["W101","76.1225","MEDIUM SORTIMENT ",99,null,0]
["W102","76.2975","XL SORTIMENT",229,null,0]
["W103","79.0020","FIRST CLASS TÆNDMIDLER CIGAR",20,null,0]
["W104","112.3300","SVEND SVÆRDSVINGER 33 STK RAKETTER ",899,null,0]
["W105","113.1905","LONG JOHN SILVER 19 SKUDS 30 MM",249,null,0]
["W106","113.2528","SORTSKÆG 25 SKUDS 20 MM.",99,null,0]
["W107","113.6620","ANNE BONNY 66 SKUD  20+25 MM",399,null,0]
["W108","113.9080","FRANCIS DRAKE 90 SKUDS MULTIBATTERI",899,null,0]
["W109","111.4015","MAGIC SHELL 4 KUGLERAKET",99,null,0]
["W110","116.6015","FEST SORTIMENT ",799,null,0]
["W111","118.2510","LYNSTANG 5 SKUDS RØR 25 MM",39,null,0]
["W112","116.9270","THE KRAKEN 100 SKUD - 25 MM",499,null,0]
["W113","113.7710","KAPTAJN DING DONG 77 SKUD - 25 MM",299,null,0]
["X101","9.6700","HUNDEPROPPER ",19.95,null,0]
["X102","9.8500","BESKYTTELSESBRILLER BØRN ",19.95,null,0]
["X103","9.8550","BESKYTTELSESBRILLER VOKSE ",19.95,null,0]
["X104","65.0100","HUNDEPROPPISTOLER PLAST ",14.95,null,0]
["X105","68.9200","BOMBERØRSHOLDER ",19.95,null,0]
["Z112",1100,"Professional tændpinde",25,null,0]
["Z113",1200,"Bengalske fakler og tændpinde",20,null,0]
["Z114","D480-40","Affyringsstativer 40 Stk.",25,null,0]
["Z116","KS1","Knaldsnor. Stor æske med 24 stk.",5,null,0]
["Z118","SS15","Stjernekaster 15 cm",5,null,0]
["Z119","SS45","Stjernekastere 45 cm.",20,null,0]
["Z120","SS782","Stjernekastere 70 cm",25,null,0]
["Z121","X-ATAB14","Ballon bordbombe 21 cm",29,null,0]
["Z123","X-ATAB16","Flag/Konfetti bombe 21 cm.",29,null,0]
["Z124","X-KB100","Bordbombesortiment 3 stk.",25,null,0]
["Z126","KD72","Konfetti spray",20,null,0]
["Z127","KR80","Partypopper stor",39,null,0]
["Z128","KP2","Konfettipistol med 2 dåser",59,null,0]
["Z132","R22","Thunderstorm 4 stk i pkk.",99,null,0]
["Z136","RL70","Turbo Thunderball",39,null,0]
["Z139","SPK6","Spanske Kugler",49,null,0]
["L151",null,"Skandi Tip Turbo Lighter",10,null,0]
["L152",null,"Skandi Jet Flame Athen Stormlighter",20,null,0]